bitfinex/quotes_ETHUSD_20250414
["timestamp","ask_amount","ask_price","bid_price","bid_amount"]
[1744596567333,0.7969,1620.6,1620.4,4.93698]
[1744596567537,0.7969,1620.6,1620.4,5.05804665]
[1744596568229,0.7969,1620.6,1620.4,0.12106665]
[1744596568606,0.7969,1620.6,1620.4,5.05793665]
[1744596568905,7.716214,1620.7,1620.4,5.05793665]
[1744596569936,12.652354,1620.7,1620.4,5.05793665]
[1744596570106,12.652354,1620.7,1620.4,0.12106665]
[1744596570308,17.588674,1620.7,1620.4,0.12106665]
[1744596570708,12.652354,1620.7,1620.4,0.12106665]
[1744596570940,1.2652354,1620.6,1620.4,0.12106665]
[1744596571240,4.93762,1620.3,1620.1,0.02]
[1744596571450,9.87524,1620.3,1620.2,0.12050928]
[1744596571742,4.93766,1620.2,1620.1,0.02]
[1744596571942,5.73456,1620.2,1620.1,0.02]
[1744596572240,7.458378,1620.2,1620.1,0.02]
[1744596574407,10.480978,1620.2,1620.1,0.02]
[1744596574609,4.93959,1619.6,1619.2,5.72964]
[1744596574910,12.32609,1619.6,1619.2,5.72964]
[1744596575125,12.32609,1619.6,1619.2,10.67018]
[1744596575318,17.26584,1619.6,1619.2,5.72954]
[1744596575622,14.052674,1619.6,1619.2,5.72954]
[1744596575824,6.567,1619.6,1619.4,4.93998]
[1744596576339,6.567,1619.7,1619.4,4.93998]
[1744596576539,11.50642,1619.7,1619.3,4.94038]
[1744596577810,6.567,1619.7,1619.4,4.93992]
[1744596578442,12.3264,1619.8,1619.4,4.93992]
[1744596578638,14.052901,1619.8,1619.4,4.93992]
[1744596579327,4.93931,1619.7,1619.3,4.94036]
[1744596579533,4.93931,1619.7,1619.3,4.94024]
[1744596579732,4.93931,1619.7,1619.3,9.88045]
[1744596580450,4.93931,1619.7,1619.3,4.94026]
[1744596580451,4.93933,1619.7,1619.3,4.94026]
[1744596580659,6.8385551,1619.7,1619.3,9.8805]
[1744596580860,6.8385551,1619.7,1619.3,4.94024]
[1744596581153,6.8385551,1619.7,1619.1,5.74974]
[1744596581154,4.93952,1619.6,1619.2,4.94061]
[1744596581335,6.8385551,1619.7,1619.3,4.94036]
[1744596581336,11.7780251,1619.7,1619.3,4.94036]
[1744596581535,11.7780251,1619.7,1619.3,4.94023]
[1744596581536,11.7779351,1619.7,1619.3,4.94023]
[1744596582052,4.93951,1619.6,1619.3,4.94023]
[1744596582258,6.8385551,1619.7,1619.3,4.94023]
[1744596582463,5.62338551,1619.6,1619.4,0.12171848]
[1744596582855,4.93933,1619.7,1619.4,0.12171848]
[1744596583155,4.93933,1619.7,1619.4,5.06178848]
[1744596583530,7.3875,1619.8,1619.5,5.72864]
[1744596583949,4.93918,1619.7,1619.6,0.12083626]
[1744596584363,4.93918,1619.7,1619.4,4.94]
[1744596584761,13.06514,1619.8,1619.5,0.12123865]
[1744596585160,18.00421,1619.8,1619.5,0.12123865]
[1744596585663,4.93923,1619.7,1619.5,0.12123865]
[1744596585864,6.739667,1619.7,1619.5,0.12123865]
[1744596586364,1.800437,1619.7,1619.5,0.12123865]
[1744596586562,13.06514,1619.8,1619.5,0.12123865]
[1744596586933,4.93923,1619.7,1619.5,0.12123865]
[1744596588561,7.3875,1619.8,1619.5,0.12123865]
[1744596588759,5.75777,1620.0,1619.6,5.72846]
[1744596589062,6.556,1619.9,1619.7,0.12120003]
[1744596589264,10.893818,1620.2,1619.8,4.93883]
[1744596589265,7.893818,1620.2,1619.8,4.93883]
[1744596589464,6.556,1620.1,1619.9,0.11935181]
[1744596590767,11.494,1620.1,1619.9,0.11935181]
[1744596590965,12.8950018,1620.1,1619.9,0.11935181]
[1744596591167,12.8950018,1620.1,1619.7,4.93908]
[1744596591470,6.556,1620.1,1619.9,5.75684]
[1744596591634,6.556,1620.1,1620.0,5.0553261]
[1744596591836,6.556,1620.2,1620.0,5.0552061]
[1744596592169,6.556,1620.2,1620.0,0.1170561]
[1744596592667,6.556,1620.2,1620.0,9.9934561]
[1744596593036,4.93677,1620.5,1620.1,4.93796]
[1744596593230,6.556,1620.4,1620.2,5.05386215]
[1744596593464,6.556,1620.4,1620.2,5.87236215]
[1744596593667,6.556,1620.4,1620.2,5.93394592]
[1744596593836,6.556,1620.4,1620.3,4.93735]
[1744596594273,6.556,1620.4,1620.2,5.75598]
[1744596595368,6.556,1620.4,1620.2,10.69347]
[1744596596082,6.556,1620.4,1620.2,5.75598]
[1744596596260,12.14885,1620.4,1620.0,5.75666]
[1744596596470,12.14885,1620.4,1620.0,4.93816]
[1744596596773,4.93776,1620.2,1619.8,10.6961]
[1744596597879,5.72996,1620.2,1619.8,10.6961]
[1744596598047,6.796702,1620.2,1619.8,10.6961]
[1744596598255,12.94086,1620.4,1619.9,4.93841]
[1744596598568,4.93736,1620.3,1620.0,4.93814]
[1744596598770,9.87496,1620.3,1619.9,4.93841]
[1744596598963,4.93767,1620.2,1619.9,4.93841]
[1744596599194,4.93736,1620.3,1619.9,4.93841]
[1744596599366,0.493736,1620.2,1619.9,4.93841]
[1744596600075,12.94089,1620.4,1620.0,4.93803]
[1744596600778,8.0038,1620.4,1620.1,4.93794]
[1744596601149,8.0038,1620.4,1620.1,9.87576]
[1744596601356,6.556,1620.4,1620.2,4.93753]
[1744596601663,58.67968,1620.6,1620.2,4.93753]
[1744596601861,6.555,1620.5,1620.2,4.93753]
[1744596602267,57.88748,1620.6,1620.3,4.93725]
[1744596602445,69.3791,1620.6,1620.2,4.93753]
[1744596602774,70.5874396,1620.6,1620.2,9.87503]
[1744596602972,65.6509596,1620.6,1620.3,9.87448]
[1744596603179,0.7545,1620.8,1620.5,4.9365]
[1744596603343,0.7545,1620.8,1620.6,4.93631]
[1744596603344,6.555,1620.8,1620.6,4.93631]
[1744596603545,6.555,1620.8,1620.4,0.7562]
[1744596603851,6.555,1620.8,1620.5,4.93664]
[1744596604050,6.555,1620.8,1620.5,10.64492]
[1744596604241,6.555,1620.8,1620.6,4.93622]
[1744596604444,6.555,1621.0,1620.8,4.93568]
[1744596604643,57.87535,1621.3,1620.9,9.87087]
[1744596604644,58.67815,1621.3,1620.9,9.87087]
[1744596605076,6.554,1621.2,1621.0,4.9352]
[1744596605380,6.554,1621.2,1620.9,4.93535]
[1744596605965,11.48865,1621.2,1620.8,0.7717]
[1744596606176,6.083935,1621.1,1620.7,4.93609]
[1744596606346,6.554,1621.2,1620.9,5.70698]
[1744596606550,6.554,1621.2,1621.0,4.93522]
[1744596606871,6.554,1621.2,1621.0,9.87032]
[1744596607252,6.554,1621.2,1621.1,4.93492]
[1744596607464,0.8028,1621.5,1620.9,5.7072]
[1744596607784,6.553,1621.6,1621.3,4.93412]
[1744596607947,6.553,1621.6,1621.4,4.93397]
[1744596608868,6.553,1621.6,1621.5,4.9337]
[1744596609053,7.3558,1621.9,1621.6,4.93327]
[1744596609253,7.3558,1621.9,1621.6,9.86648]
[1744596609583,6.553,1621.9,1621.7,9.86602]
[1744596610083,6.553,1621.9,1621.5,3.7717]
[1744596610084,11.48574,1621.9,1621.5,3.7717]
[1744596610251,64.86402355,1622.0,1621.7,4.9328]
[1744596610772,64.86402355,1622.0,1621.8,0.7717]
[1744596610773,58.31102355,1622.0,1621.8,0.7717]
[1744596610973,58.31102355,1622.0,1621.9,4.93248]
[1744596611186,5.37502355,1622.0,1621.9,4.93248]
[1744596612789,5.37502355,1622.0,1621.9,5.54413129]
[1744596612950,5.37502355,1622.0,1621.9,7.21349437]
[1744596613385,5.37502355,1622.0,1621.9,7.15184308]
[1744596614486,0.02,1622.4,1622.2,9.86293]
[1744596614853,0.02,1622.4,1622.3,4.93127]
[1744596616468,0.02,1622.4,1622.3,5.48127]
[1744596616672,0.02,1622.4,1622.3,6.60587168]
[1744596618415,0.02,1622.4,1622.3,6.05587168]
[1744596618574,0.02,1622.4,1622.3,4.93127]
[1744596619171,0.02,1622.4,1622.2,5.70311]
[1744596619172,0.02,1622.4,1622.2,4.93156]
[1744596619439,0.02,1622.4,1622.3,4.93127]
[1744596620907,0.02,1622.4,1622.3,4.99290197]
[1744596621108,0.02,1622.4,1622.3,5.71137]
[1744596621426,0.02,1622.4,1622.2,4.93156]
[1744596621576,0.02,1622.4,1622.3,4.93127]
[1744596622323,0.02,1622.4,1622.1,5.71195]
[1744596622528,0.02,1622.4,1622.0,7.93217]
[1744596622529,5.74027,1622.4,1622.0,7.93217]
[1744596622734,0.8093,1622.4,1622.1,4.93167]
[1744596623026,0.8093,1622.4,1622.1,4.99331203]
[1744596623208,11.245532,1622.4,1622.0,4.93214]
[1744596623408,4.93158,1622.2,1621.8,4.93275]
[1744596623631,0.7893,1622.1,1621.6,4.93336]
[1744596623837,4.93251,1621.9,1621.6,4.93336]
[1744596624356,4.93251,1621.9,1621.5,5.71375]
[1744596624534,4.93251,1621.9,1621.5,6.778524]
[1744596625728,4.93251,1621.9,1621.5,6.778434]
[1744596626032,4.93294,1621.8,1621.4,4.93398]
[1744596626234,4.93352,1621.6,1621.2,4.9345]
[1744596626431,4.93372,1621.5,1621.1,10.64976]
[1744596626580,4.93372,1621.5,1621.1,0.7801]
[1744596626784,4.93416,1621.4,1621.0,4.93519]
[1744596627031,9.86837,1621.4,1621.0,4.93502]
[1744596627184,4.93416,1621.4,1621.0,4.93502]
[1744596627691,9.86837,1621.4,1621.0,4.93502]
[1744596628032,9.86837,1621.4,1620.9,4.93552]
[1744596628033,7.827672,1621.5,1621.2,4.93457]
[1744596628245,12.26821,1621.5,1621.1,4.93488]
[1744596628532,4.93411,1621.4,1621.0,4.93522]
[1744596629927,4.93411,1621.4,1620.9,4.93547]
[1744596629928,4.93444,1621.3,1620.9,4.93547]
[1744596630281,4.93444,1621.3,1620.9,9.8708]
[1744596631135,10.65879,1621.2,1620.8,4.9358]
[1744596631453,0.7893,1621.2,1620.8,6.222829]
[1744596631650,0.7893,1621.2,1621.0,4.93506]
[1744596631863,0.7893,1621.2,1621.1,0.25559461]
[1744596632161,7.3496,1621.5,1621.2,4.9345]
[1744596632449,12.28331,1621.5,1621.3,0.25477217]
[1744596632652,4.93414,1621.4,1621.0,4.93518]
[1744596632859,4.93414,1621.4,1621.1,0.25559461]
[1744596633338,9.86903,1621.3,1621.1,0.25559461]
[1744596633516,5.73921,1621.2,1621.1,0.25559461]
[1744596633848,5.73921,1621.2,1621.1,0.2553918]
[1744596634009,4.93597,1620.8,1620.3,5.71632]
[1744596634203,5.72674,1620.7,1620.4,0.25886566]
[1744596634844,5.72674,1620.7,1620.4,1.27220723]
[1744596634845,0.7905,1620.7,1620.4,1.27220723]
[1744596635008,0.7905,1620.7,1620.5,4.93659]
[1744596635218,0.7905,1620.7,1620.6,0.23749327]
[1744596635937,6.547,1620.9,1620.6,0.23749327]
[1744596636142,6.547,1620.9,1620.8,4.93583]
[1744596636350,7.3375,1621.3,1621.0,4.935]
[1744596636657,0.32186343,1621.2,1621.1,0.23804578]
[1744596636971,7.3375,1621.3,1621.1,0.23804578]
[1744596637521,7.3375,1621.3,1621.1,5.17294578]
[1744596637822,7.3375,1621.3,1621.1,0.23804578]
[1744596638953,13.499151,1621.3,1621.1,0.23804578]
[1744596639138,4.93461,1621.2,1621.1,0.23804578]
[1744596639446,9.8695,1621.2,1620.8,4.93582]
[1744596639661,9.8695,1621.2,1620.9,0.23627442]
[1744596639822,9.8695,1621.2,1620.8,4.93582]
[1744596639823,4.9356,1620.9,1620.5,4.93662]
[1744596640010,16.41937,1620.9,1620.6,0.2351115]
[1744596640214,6.548,1620.9,1620.6,5.1713715]
[1744596640723,11.48353,1620.9,1620.6,5.1713715]
[1744596641135,6.548,1620.9,1620.6,5.1713715]
[1744596641745,12.710924,1620.9,1620.6,0.2351115]
[1744596642051,12.710924,1620.9,1620.5,4.93653]
[1744596642229,12.710924,1620.9,1620.6,0.23779785]
[1744596642550,6.548,1620.9,1620.6,5.17406785]
[1744596642847,6.548,1620.9,1620.7,4.93613]
[1744596643040,6.548,1620.9,1620.8,0.24023551]
[1744596643422,11.48352,1620.9,1620.6,4.93627]
[1744596643622,11.48352,1620.9,1620.7,0.24070336]
[1744596643850,6.548,1620.9,1620.6,4.93626]
[1744596644038,6.548,1620.9,1620.8,4.93583]
[1744596644218,6.548,1620.9,1620.8,0.24234991]
[1744596645921,6.548,1620.9,1620.6,4.93633]
[1744596646219,6.548,1620.9,1620.7,0.24236566]
[1744596646531,6.548,1620.9,1620.6,4.93633]
[1744596646732,6.548,1620.9,1620.8,0.24195413]
[1744596646934,6.548,1620.9,1620.7,0.24236566]
[1744596647128,6.548,1620.9,1620.8,0.24195413]
[1744596647328,11.48353,1620.9,1620.5,4.93673]
[1744596647534,0.7905,1620.7,1620.5,4.93673]
[1744596647921,6.548,1620.9,1620.7,4.93613]
[1744596648150,6.548,1620.9,1620.8,4.93583]
[1744596648525,6.548,1620.9,1620.7,4.93613]
[1744596648725,6.548,1620.9,1620.6,0.779]
[1744596648921,6.548,1620.9,1620.7,9.87201]
[1744596649126,7.2028,1620.9,1620.6,4.93639]
[1744596649722,6.548,1620.9,1620.7,4.93605]
[1744596649926,6.548,1620.9,1620.8,4.93583]
[1744596653055,6.548,1620.9,1620.6,4.9364]
[1744596653224,11.48353,1620.9,1620.6,4.9364]
[1744596653421,6.548,1620.9,1620.6,9.87271]
[1744596653668,6.548,1620.9,1620.7,4.93601]
[1744596653885,6.548,1620.9,1620.8,4.93583]
[1744596654025,6.548,1620.9,1620.6,4.93643]
[1744596654563,5.70887,1620.8,1620.5,4.93671]
[1744596655061,0.773,1620.8,1620.5,9.8733]
[1744596655257,0.773,1620.8,1620.4,0.06170614]
[1744596655258,0.773,1620.8,1620.6,4.93623]
[1744596655553,0.773,1620.8,1620.5,4.93662]
[1744596655944,5.70893,1620.8,1620.4,9.8741]
[1744596656144,7.32,1620.8,1620.5,4.93659]
[1744596656669,12.25595,1620.8,1620.4,4.93694]
[1744596656876,1.225595,1620.7,1620.4,4.93694]
[1744596657174,4.93647,1620.6,1620.3,6.16]
[1744596657391,4.93647,1620.6,1620.2,4.93749]
[1744596657392,0.773,1620.5,1620.2,4.93749]
[1744596657543,0.773,1620.5,1620.4,0.22336892]
[1744596658070,0.773,1620.5,1620.1,0.06171861]
[1744596658245,0.773,1620.5,1620.3,9.8742]
[1744596658445,1.998595,1620.7,1620.4,5.16041892]
[1744596659078,6.934785,1620.7,1620.4,5.16041892]
[1744596660075,4.93674,1620.5,1620.4,0.22336892]
[1744596660374,5.70974,1620.5,1620.1,4.93781]
[1744596660578,4.93745,1620.3,1620.0,4.93822]
[1744596660768,9.87503,1620.3,1620.2,0.22512871]
[1744596661080,4.93745,1620.3,1620.2,0.22518515]
[1744596661378,4.93745,1620.3,1619.9,4.93853]
[1744596661379,0.773,1620.3,1619.9,4.93857]
[1744596661579,5.71035,1620.3,1620.2,0.22360179]
[1744596661788,6.936085,1620.3,1619.9,4.93853]
[1744596662073,4.93773,1620.2,1619.8,4.93884]
[1744596662374,6.936085,1620.3,1619.9,0.22499502]
[1744596662375,5.71137,1620.0,1619.9,0.22499502]
[1744596662569,12.25937,1620.0,1619.9,0.22499502]
[1744596662882,18.917661,1620.0,1619.9,0.23066861]
[1744596663064,4.93858,1619.9,1619.5,9.87941]
[1744596663251,4.93858,1619.9,1619.6,0.23190458]
[1744596663650,13.979121,1620.0,1619.8,4.93875]
[1744596663651,6.548,1620.0,1619.8,4.93875]
[1744596663861,6.548,1620.0,1619.9,5.17036748]
[1744596664982,6.549,1620.3,1620.2,4.93766]
[1744596665345,6.549,1620.3,1620.2,5.16931224]
[1744596665547,7.322,1620.6,1620.4,4.93688]
[1744596665971,7.322,1620.6,1620.5,0.23073412]
[1744596666678,6.549,1620.6,1620.5,5.16747412]
[1744596666881,7.3758,1620.8,1620.5,0.23073412]
[1744596667182,5.67374,1620.7,1620.5,0.23073412]
[1744596667481,4.93717,1620.4,1620.0,4.93825]
[1744596667680,6.549,1620.3,1620.2,4.93766]
[1744596667851,6.549,1620.3,1620.2,5.16738273]
[1744596668275,6.549,1620.3,1620.2,0.22972273]
[1744596668474,6.549,1620.3,1620.0,9.87638]
[1744596668647,7.697609,1620.3,1620.1,0.23013443]
[1744596668852,7.697609,1620.3,1620.1,5.16809443]
[1744596669851,6.549,1620.3,1620.2,4.93766]
[1744596670050,6.549,1620.3,1620.2,0.23043379]
[1744596670385,6.549,1620.3,1620.2,4.93766]
[1744596670585,6.549,1620.3,1620.2,5.16882769]
[1744596670759,6.549,1620.3,1620.2,0.23116769]
[1744596670965,6.549,1620.3,1620.2,5.16882769]
[1744596675188,6.549,1620.3,1620.2,6.17949046]
[1744596678173,6.549,1620.3,1620.2,6.94339046]
[1744596679910,6.549,1620.3,1620.2,0.23116769]
[1744596680094,4.93786,1620.2,1619.8,4.93877]
[1744596680391,4.93786,1620.2,1619.9,0.21074169]
[1744596680694,0.7926,1620.0,1619.7,4.93903]
[1744596680883,0.7926,1620.0,1619.8,0.1914742]
[1744596681084,0.7926,1620.0,1619.8,5.1302442]
[1744596681698,0.7926,1620.2,1619.9,4.93846]
[1744596681873,7.451939,1620.2,1620.0,0.19215499]
[1744596682073,4.93796,1620.1,1620.0,0.19215499]
[1744596682273,4.93796,1620.1,1619.8,4.93871]
[1744596682474,12.389809,1620.2,1619.9,0.19492069]
[1744596682790,7.451939,1620.2,1619.9,0.19492069]
[1744596683495,2.514259,1620.2,1619.9,5.13345069]
[1744596683696,0.7926,1620.2,1620.0,4.93817]
[1744596683898,12.2784,1620.2,1620.1,0.19428888]
[1744596684078,12.2784,1620.2,1619.8,4.93871]
[1744596684397,12.2784,1620.2,1619.9,0.1951126]
[1744596684398,1.22784,1620.1,1619.9,0.1951126]
[1744596685468,5.73087,1620.0,1619.9,0.1951126]
[1744596685697,10.66933,1620.0,1619.6,4.93947]
[1744596685897,5.73087,1620.0,1619.7,0.19373093]
[1744596686100,0.7926,1620.0,1619.7,5.13263093]
[1744596686288,0.7926,1620.0,1619.8,4.93884]
[1744596686477,0.7926,1620.0,1619.9,0.19290725]
[1744596686674,0.7926,1620.0,1619.8,4.93884]
[1744596687019,6.426714,1620.0,1619.9,0.19290725]
[1744596687399,1.488444,1620.0,1619.6,0.0617419]
[1744596687699,1.22784,1620.1,1619.8,4.93875]
[1744596688762,6.16582,1620.1,1619.7,5.70264]
[1744596688980,6.16585,1620.1,1619.8,0.19379407]
[1744596689180,0.7926,1619.9,1619.8,0.19379407]
[1744596689375,6.95845,1620.1,1619.7,4.93891]
[1744596689589,0.695845,1620.0,1619.7,4.93891]
[1744596689789,0.695845,1620.0,1619.8,0.19379407]
[1744596690101,5.634215,1620.0,1619.8,0.19379407]
[1744596690299,5.634215,1620.0,1619.6,4.93933]
[1744596690600,5.634145,1620.0,1619.7,0.19420597]
[1744596690804,0.695845,1620.0,1619.7,5.13332597]
[1744596691324,0.7926,1620.5,1619.8,0.7635]
[1744596691613,10.66658,1620.5,1620.1,4.9377]
[1744596691809,5.72957,1620.5,1620.1,4.9377]
[1744596692118,4.93735,1620.3,1620.2,0.19700473]
[1744596692318,4.9377,1620.2,1619.9,4.93854]
[1744596692499,6.004465,1620.2,1620.0,0.19719479]
[1744596693187,6.004465,1620.2,1619.8,9.87759]
[1744596693409,6.004465,1620.2,1620.1,0.19577233]
[1744596693643,1.066765,1620.2,1619.9,4.93855]
[1744596693944,1.066765,1620.2,1620.0,5.13413656]
[1744596695336,6.004425,1620.2,1620.0,0.19594656]
[1744596695840,6.3310025,1620.1,1620.0,0.19594656]
[1744596696133,11.2692125,1620.1,1619.6,10.64232]
[1744596696332,4.9383,1620.0,1619.7,0.19876089]
[1744596696507,11.4873,1620.0,1619.7,0.19876089]
[1744596696705,13.26913025,1620.0,1619.7,5.13793089]
[1744596703136,6.549,1620.0,1619.9,4.93857]
[1744596703316,6.549,1620.0,1619.9,5.12674007]
[1744596705805,6.549,1620.0,1619.9,0.18817007]
[1744596706428,11.48727,1620.0,1619.9,0.18817007]
[1744596706611,12.29577,1620.0,1619.9,0.18817007]
[1744596706814,4.93862,1619.9,1619.6,5.70277]
[1744596707438,8.272377,1620.0,1619.6,0.7635]
[1744596707639,6.549,1620.0,1619.8,4.93866]
[1744596708140,6.549,1620.0,1619.8,9.87739]
[1744596708346,6.549,1620.0,1619.9,4.93857]
[1744596709241,6.549,1620.3,1620.0,4.93808]
[1744596709444,6.549,1620.3,1620.1,4.93793]
[1744596709613,52.945,1620.5,1620.3,4.93725]
[1744596710007,52.945,1620.5,1620.3,9.87443]
[1744596710213,52.945,1620.5,1620.3,10.944533]
[1744596710518,6.547,1620.6,1620.4,4.93688]
[1744596710840,9.8713,1620.9,1620.5,0.8266]
[1744596710841,6.547,1620.9,1620.5,0.8266]
[1744596711009,6.547,1620.9,1620.6,4.93629]
[1744596711409,6.547,1620.9,1620.6,9.87261]
[1744596711644,6.547,1620.9,1620.8,4.93583]
[1744596712210,65.24605,1621.2,1620.8,4.93583]
[1744596712522,71.3910096,1621.2,1620.8,4.93583]
[1744596712722,71.3910096,1621.2,1620.8,9.87146]
[1744596712939,60.3114,1621.2,1620.7,0.8266]
[1744596713141,52.947,1621.2,1621.0,9.86999]
[1744596713341,12.73842355,1621.4,1621.1,4.93492]
[1744596713710,11.92102355,1621.4,1621.1,9.86964]
[1744596713911,6.546,1621.4,1621.1,4.93472]
[1744596714110,6.546,1621.4,1621.0,5.7618]
[1744596714111,4.93434,1621.3,1621.0,0.8266]
[1744596714312,0.8174,1621.3,1620.8,0.8266]
[1744596714655,4.93526,1621.0,1620.6,11.923]
[1744596714947,5.922279,1621.0,1620.6,0.8266]
[1744596715138,4.93584,1620.8,1620.5,4.93674]
[1744596715518,12.29904,1620.9,1620.5,4.93674]
[1744596715845,6.546,1620.9,1620.7,4.93601]
[1744596716928,6.546,1620.9,1620.6,4.9364]
[1744596717331,6.546,1620.9,1620.6,9.87267]
[1744596717551,6.546,1620.9,1620.7,5.11401156]
[1744596717755,6.546,1620.9,1620.8,4.93583]
[1744596718053,6.546,1620.9,1620.8,5.11435997]
[1744596718726,6.546,1620.9,1620.8,0.17852997]
[1744596719126,11.48152,1620.9,1620.8,0.17852997]
[1744596719344,13.123201,1620.9,1620.5,4.93671]
[1744596719527,13.123201,1620.9,1620.6,5.17047755]
[1744596719528,6.546,1620.9,1620.6,5.17047755]
[1744596719737,6.546,1620.9,1620.6,5.10877389]
[1744596720412,6.546,1620.9,1620.7,4.93613]
[1744596720846,6.546,1620.9,1620.8,0.17248853]
[1744596721649,6.545,1621.2,1620.8,5.93491853]
[1744596721836,6.545,1621.2,1620.9,4.93541]
[1744596722153,6.545,1621.2,1621.0,0.17210732]
[1744596722920,6.545,1621.2,1621.1,4.93492]
[1744596723119,6.545,1621.2,1621.1,5.93400743]
[1744596723512,6.545,1621.2,1621.1,7.02090217]
[1744596724570,6.545,1621.2,1621.1,2.08598217]
[1744596724752,6.545,1621.2,1621.1,0.99908743]
[1744596725551,12.27421,1621.2,1621.1,0.17248743]
[1744596725718,4.93498,1621.1,1620.7,0.8207]
[1744596725919,4.93498,1621.1,1620.8,0.15314665]
[1744596727019,7.3396,1621.2,1620.9,4.93543]
[1744596727245,12.27425,1621.2,1620.9,4.93543]
[1744596727436,12.27425,1621.2,1621.0,0.15400415]
[1744596728354,17.20904,1621.2,1621.0,0.15400415]
[1744596728535,9.87002,1621.1,1620.7,5.75683]
[1744596728854,9.87067,1621.0,1620.8,0.15451016]
[1744596729022,4.93525,1621.0,1620.8,0.15451016]
[1744596729223,4.93523,1621.0,1620.8,0.15451016]
[1744596729443,4.93519,1621.1,1620.7,9.87204]
[1744596729636,12.27422,1621.2,1620.9,0.15354489]
[1744596729844,7.3396,1621.2,1620.9,4.9353]
[1744596730031,7.3396,1621.2,1621.0,0.15329193]
[1744596730731,7.3396,1621.2,1620.9,4.9354]
[1744596730940,6.545,1621.2,1621.0,5.08874847]
[1744596731234,5.72794,1621.7,1621.3,4.93415]
[1744596731562,4.93371,1621.5,1621.4,0.15370461]
[1744596731755,4.93371,1621.5,1621.1,4.9347]
[1744596732065,4.93371,1621.5,1621.2,0.15405217]
[1744596732259,4.93371,1621.5,1621.2,5.08866217]
[1744596732632,4.93371,1621.5,1621.2,0.15405217]
[1744596733364,4.93411,1621.4,1621.3,0.15387838]
[1744596733527,4.93411,1621.4,1621.1,4.9348]
[1744596733727,4.93411,1621.4,1621.2,0.15405217]
[1744596736172,4.93431,1621.3,1621.2,0.15405217]
[1744596736332,6.711592,1621.4,1621.0,5.7559]
[1744596736529,5.72481,1621.4,1621.1,5.08645516]
[1744596736734,9.86832,1621.4,1621.1,0.15154516]
[1744596736958,4.93411,1621.4,1621.1,0.15154516]
[1744596737463,4.93372,1621.5,1621.2,4.93461]
[1744596737655,11.47712,1621.7,1621.3,10.64997]
[1744596737855,11.47712,1621.7,1621.3,11.86727241]
[1744596738077,0.7907,1621.8,1621.4,4.934]
[1744596738231,57.87051,1621.9,1621.6,4.93326]
[1744596738232,59.481,1621.9,1621.6,4.93326]
[1744596738438,4.93325,1621.7,1621.5,0.15148318]
[1744596738638,4.93356,1621.6,1621.3,0.7815]
[1744596738940,10.88091,1621.8,1621.4,4.93389]
[1744596739141,4.93281,1621.8,1621.5,4.93369]
[1744596739343,70.1497,1621.9,1621.5,4.93369]
[1744596739554,4.93289,1621.8,1621.4,4.93389]
[1744596739830,4.93328,1621.7,1621.4,4.93398]
[1744596740271,4.93282,1621.8,1621.4,4.93389]
[1744596740567,4.93282,1621.8,1621.5,4.93365]
[1744596740870,4.93282,1621.8,1621.4,4.93389]
[1744596741174,4.93282,1621.8,1621.4,4.93386]
[1744596741373,65.21702,1621.9,1621.5,4.93359]
[1744596741538,60.2845,1621.9,1621.6,4.93338]
[1744596741739,59.481,1621.9,1621.6,5.72748]
[1744596742069,59.481,1621.9,1621.7,4.93296]
[1744596742367,59.481,1621.9,1621.7,9.86594]
[1744596742542,59.481,1621.9,1621.7,10.931944]
[1744596742743,59.481,1621.9,1621.6,0.7941]
[1744596742744,64.41353,1621.9,1621.6,0.7941]
[1744596742947,4.93279,1621.8,1621.4,5.72792]
[1744596743150,64.41353,1621.9,1621.5,4.93365]
[1744596743766,64.41353,1621.9,1621.6,4.93338]
[1744596744575,4.93289,1621.8,1621.4,5.72807]
[1744596744866,10.66937,1621.8,1621.4,5.72807]
[1744596745071,5.73639,1621.8,1621.4,10.6619]
[1744596745271,10.66937,1621.8,1621.4,5.72793]
[1744596745769,4.9333,1621.7,1621.4,0.7941]
[1744596745971,4.93341,1621.6,1621.3,4.93429]
[1744596746276,4.93401,1621.4,1621.0,5.7293]
[1744596746453,9.86823,1621.4,1621.0,5.7293]
[1744596746974,4.93401,1621.4,1621.0,5.7293]
[1744596747175,4.93401,1621.4,1621.0,6.795779]
[1744596747373,11.47274,1621.5,1621.0,6.795779]
[1744596747374,4.93446,1621.3,1621.0,1.860579]
[1744596747674,4.93474,1621.2,1621.1,0.14815738]
[1744596748078,5.73904,1620.9,1620.5,4.93649]
[1744596748392,5.73904,1620.9,1620.5,9.87309]
[1744596748892,5.73904,1620.9,1620.5,4.93649]
[1744596749093,5.73904,1620.9,1620.5,6.53453545]
[1744596749390,5.73904,1620.9,1620.5,11.47110545]
[1744596749616,6.539,1621.0,1620.8,4.93572]
[1744596749880,6.539,1621.0,1620.7,5.72996]
[1744596750075,16.40969,1621.0,1620.7,0.7941]
[1744596750273,13.195559,1621.0,1620.6,9.87269]
[1744596750573,6.539,1621.0,1620.7,4.93605]
[1744596750871,11.47433,1621.0,1620.6,4.93642]
[1744596751044,6.539,1621.0,1620.6,4.93631]
[1744596751242,6.539,1621.0,1620.7,4.93593]
[1744596751443,6.539,1621.0,1620.7,10.37168268]
[1744596751890,6.539,1621.0,1620.7,5.43569268]
[1744596752849,11.47424,1621.0,1620.7,5.43569268]
[1744596754043,11.47424,1621.0,1620.8,0.15148971]
[1744596754594,6.539,1621.0,1620.8,0.15148971]